fUSD/lending_fUSD_20260617
["ID","MTS","AMOUNT","RATE_DAILY","PERIOD"]
[425303585,1781677832000,-500.0,0.00019202,2]
[425303592,1781677832000,-151.0,0.00019205,2]
[425303581,1781677832000,-500.0,0.00019202,2]
[425303568,1781677832000,-500.0,0.00019202,2]
[425303564,1781677832000,-500.0,0.00019202,2]
[425303567,1781677832000,-500.0,0.00019202,2]
[425303574,1781677832000,-500.0,0.00019202,2]
[425303576,1781677832000,-500.0,0.00019202,2]
[425303573,1781677832000,-500.0,0.00019202,2]
[425303572,1781677832000,-500.0,0.00019202,2]
[425303575,1781677832000,-468.53991099,0.00019202,2]
[425303571,1781677832000,-500.0,0.00019202,2]
[425303580,1781677832000,-150.0,0.00019202,2]
[425303584,1781677832000,-500.0,0.00019202,2]
[425303577,1781677832000,-537.42691109,0.00019202,2]
[425303579,1781677832000,-500.0,0.00019202,2]
[425303578,1781677832000,-156.68400465,0.00019202,2]
[425303582,1781677832000,-500.0,0.00019202,2]
[425303583,1781677832000,-500.0,0.00019202,2]
[425303565,1781677832000,-500.0,0.00019202,2]
[425303610,1781677833000,-209.108589,0.0002,2]
[425303603,1781677833000,-159.0,0.0002,2]
[425303604,1781677833000,-158.0,0.0002,2]
[425303605,1781677833000,-198.0,0.0002,2]
[425303607,1781677833000,-460.0,0.0002,2]
[425303608,1781677833000,-396.0,0.0002,2]
[425303606,1781677833000,-160.0,0.0002,2]
[425303609,1781677833000,-163.84367645,0.0002,2]
[425303611,1781677833000,-160.0,0.0002,2]
[425303614,1781677833000,-2094.74,0.0002,2]
[425303616,1781677833000,-334.96582629,0.00020245,2]
[425303615,1781677833000,-705.15403747,0.00020245,2]
[425303613,1781677833000,-155.0,0.0002,2]
[425303617,1781677833000,-348.6601087,0.00020245,2]
[425303612,1781677833000,-152.0,0.0002,2]
[425303630,1781677838000,-3577.36621294,0.00020245,2]
[425303631,1781677838000,-13147.78675005,0.00020245,2]
[425303633,1781677838000,-2797.21011972,0.00020245,2]
[425303634,1781677838000,-2411.33257062,0.00020245,2]
[425303635,1781677838000,-11.690648,0.00020245,2]
[425303639,1781677838000,-160.0,0.00020541,2]
[425303636,1781677838000,-1500.0,0.00020254,2]
[425303632,1781677838000,-1760.62776368,0.00020245,2]
[425303637,1781677838000,-397.0,0.00020527,2]
[425303642,1781677838000,-606.0,0.00021,2]
[425303640,1781677838000,-1555.5,0.00020802,2]
[425303641,1781677838000,-166.66,0.00020805,2]
[425303643,1781677838000,-198.0,0.00021,2]
[425303644,1781677838000,-460.0,0.00021,2]
[425303645,1781677838000,-394.04760957,0.00021,2]
[425303638,1781677838000,-160.0,0.0002054,2]
[425303669,1781677840000,-1000.0,0.00021617,2]
[425303667,1781677840000,-1613.0535,0.0002135,2]
[425303673,1781677840000,-202.17172813,0.000217,2]
[425303674,1781677840000,-503.78629218,0.000218,2]
[425303672,1781677840000,-196.72473436,0.000217,2]
[425303675,1781677840000,-196.56414408,0.000218,2]
[425303671,1781677840000,-166.66,0.00021681,2]
[425303666,1781677840000,-166.66,0.00021243,2]
[425303660,1781677840000,-166.0,0.00021,2]
[425303665,1781677840000,-476.83320607,0.00021099,2]
[425303663,1781677840000,-600.0,0.00021015,2]
[425303668,1781677840000,-408.0,0.00021462,2]
[425303659,1781677840000,-166.83102909,0.00021,2]
[425303657,1781677840000,-1.95239043,0.00021,2]
[425303661,1781677840000,-170.54905192,0.00021,2]
[425303662,1781677840000,-193.31152324,0.00021013,2]
[425303658,1781677840000,-209.108589,0.00021,2]
[425303664,1781677840000,-59.73157116,0.00021099,2]
[425303670,1781677840000,-1604.59,0.00021628,2]
[425303692,1781677840000,-1562.29734497,0.00022111,2]
[425303677,1781677840000,-184.76,0.00021819,2]
[425303676,1781677840000,-173.98,0.00021819,2]
[425303696,1781677840000,-1129.55584746,0.00022111,2]
[425303691,1781677840000,-580.27663136,0.00022111,2]
[425303693,1781677840000,-1203.52507121,0.00022111,2]
[425303694,1781677840000,-1643.77286352,0.00022111,2]
[425303690,1781677840000,-691.54289251,0.00022111,2]
[425303689,1781677840000,-166.0,0.00022,2]
[425303688,1781677840000,-209.108589,0.00022,2]
[425303684,1781677840000,-606.0,0.00022,2]
[425303695,1781677840000,-261.222116,0.00022111,2]
[425303687,1781677840000,-396.0,0.00022,2]
[425303680,1781677840000,-1672.7364795,0.00021898,2]
[425303685,1781677840000,-198.0,0.00022,2]
[425303683,1781677840000,-503.78629218,0.00022,2]
[425303678,1781677840000,-153.42,0.00021885,2]
[425303681,1781677840000,-242.59,0.00021913,2]
[425303686,1781677840000,-460.0,0.00022,2]
[425303682,1781677840000,-200.0,0.00021961,2]
[425303679,1781677840000,-420.55,0.00021887,2]
[425303738,1781677841000,-151.0,0.00023949,2]
[425303733,1781677841000,-1185.18,0.00023256,7]
[425303735,1781677841000,-6304.01896237,0.0002381,2]
[425303729,1781677841000,-460.0,0.00023,2]
[425303734,1781677841000,-2000.0,0.000237,2]
[425303730,1781677841000,-396.0,0.00023,2]
[425303715,1781677841000,-503.78629218,0.000225,2]
[425303728,1781677841000,-198.0,0.00023,2]
[425303736,1781677841000,-504.275,0.0002383,5]
[425303727,1781677841000,-606.0,0.00023,2]
[425303726,1781677841000,-166.66,0.00022995,30]
[425303725,1781677841000,-630.8251303,0.00022994,2]
[425303724,1781677841000,-1167.98382491,0.00022994,2]
[425303714,1781677841000,-1734.62772924,0.00022446,2]
[425303723,1781677841000,-173.98,0.0002291,2]
[425303721,1781677841000,-503.78629218,0.000227,2]
[425303722,1781677841000,-150.0,0.00022746,2]
[425303697,1781677841000,-4863.71723297,0.00022111,2]
[425303701,1781677841000,-130.18192235,0.00022281,2]
[425303700,1781677841000,-500.0,0.00022245,2]
[425303699,1781677841000,-503.78629218,0.000222,2]
[425303702,1781677841000,-926.87,0.00022281,2]
[425303704,1781677841000,-3942.94807765,0.00022281,2]
[425303740,1781677841000,-151.0,0.0002395,2]
[425303698,1781677841000,-166.66,0.00022119,30]
[425303706,1781677841000,-159.38,0.00022325,2]
[425303710,1781677841000,-236.01938103,0.00022407,2]
[425303711,1781677841000,-198.37927062,0.00022407,2]
[425303720,1781677841000,-548.08,0.00022691,2]
[425303718,1781677841000,-166.66,0.00022557,30]
[425303712,1781677841000,-777.54,0.00022437,2]
[425303708,1781677841000,-463.10664118,0.00022407,2]
[425303741,1781677841000,-151.0,0.0002395,2]
[425303731,1781677841000,-209.108589,0.00023,2]
[425303750,1781677841000,-198.0,0.00024,2]
[425303762,1781677841000,-151.0,0.0002409,2]
[425303763,1781677841000,-151.0,0.0002409,2]
[425303764,1781677841000,-151.0,0.0002409,2]
[425303765,1781677841000,-151.0,0.0002409,2]
[425303766,1781677841000,-151.0,0.0002409,2]
[425303768,1781677841000,-151.0,0.0002409,2]
[425303767,1781677841000,-151.0,0.0002409,2]
[425303770,1781677841000,-151.0,0.0002409,2]
[425303742,1781677841000,-482.29,0.00023951,2]
[425303769,1781677841000,-151.0,0.0002409,2]
[425303772,1781677841000,-151.0,0.0002409,2]
[425303773,1781677841000,-856.0912057,0.00024154,2]
[425303774,1781677841000,-1559.05577369,0.00024163,2]
[425303775,1781677841000,-353.47176662,0.00024163,2]
[425303776,1781677841000,-360.42425931,0.00024163,2]
[425303761,1781677841000,-151.0,0.0002409,2]
[425303759,1781677841000,-151.0,0.0002409,2]
[425303771,1781677841000,-151.0,0.0002409,2]
[425303757,1781677841000,-578.20924308,0.0002409,2]
[425303760,1781677841000,-151.0,0.0002409,2]
[425303751,1781677841000,-460.0,0.00024,2]
[425303743,1781677841000,-482.29,0.00023954,2]
[425303746,1781677841000,-482.34,0.00023955,2]
[425303744,1781677841000,-441.22,0.00023955,2]
[425303747,1781677841000,-482.29,0.00023969,2]
[425303748,1781677841000,-482.29,0.00023969,2]
[425303732,1781677841000,-186.41583846,0.00023163,2]
[425303749,1781677841000,-606.0,0.00024,2]
[425303745,1781677841000,-482.34,0.00023955,2]
[425303752,1781677841000,-396.0,0.00024,2]
[425303753,1781677841000,-209.108589,0.00024,2]
[425303754,1781677841000,-173.98,0.00024001,2]
[425303756,1781677841000,-1108.654,0.00024063,2]
[425303755,1781677841000,-1911.4205771,0.00024006,2]
[425303758,1781677841000,-670.58624095,0.0002409,2]
[425303798,1781677844000,-151.0,0.00019103,2]
[425303803,1781677844000,-6840.81606874,0.00024163,2]
[425303808,1781677844000,-1780.6039044,0.00024163,2]
[425303805,1781677844000,-5958.68617529,0.00024163,2]
[425303815,1781677844000,-127.03313738,0.00024163,2]
[425303800,1781677844000,-507.8577098,0.00024163,2]
[425303816,1781677846000,-1909.89068391,0.00024163,2]
[425303818,1781677846000,-1082.68153809,0.00024163,2]
[425303819,1781677846000,-4125.14307454,0.00024163,2]
[425303817,1781677846000,-7297.78272993,0.00024163,2]
[425303821,1781677846000,-3401.8799856,0.00024163,2]
[425303823,1781677846000,-767.9779999,0.00024163,2]
[425303820,1781677846000,-775.1225002,0.00024163,2]
[425303822,1781677846000,-3294.67368547,0.00024163,2]
[425303843,1781677912000,151.41,0.00018,2]
[425303845,1781678221000,7936.75942975,0.0003,120]
[425303849,1781678552000,-166.66,0.00018874,2]
[425303851,1781678775000,-269.27048685,0.00018127,2]
[425303853,1781678830000,-322.05965673,0.00018302,2]
[425303854,1781678832000,-207.72660635,0.0001849,2]
[425303855,1781678832000,165.7973952,0.00030136,120]
[425303857,1781678839000,-447.87631553,0.00018678,2]
[425303856,1781678839000,-42.27339365,0.0001849,2]
[425303859,1781678885000,-600.0,0.00018678,2]
[425303860,1781678906000,-600.0,0.00018678,2]
[425303883,1781679031000,-151.0,0.0001898,2]
[425303886,1781679031000,-151.0,0.0001898,2]
[425303885,1781679031000,-151.0,0.0001898,2]
[425303877,1781679031000,-600.0,0.00018807,2]
[425303880,1781679031000,-150.0,0.00018979,2]
[425303879,1781679031000,-2054.99,0.00018839,2]
[425303878,1781679031000,-600.0,0.00018807,2]
[425303875,1781679031000,-129.25580499,0.00018711,2]
[425303882,1781679031000,-150.0,0.0001898,2]
[425303874,1781679031000,-24.21419501,0.00018711,2]
[425303872,1781679031000,-293.9285074,0.00018694,2]
[425303870,1781679031000,-32.48476881,0.00018678,2]
[425303871,1781679031000,-163.71,0.00018694,2]
[425303869,1781679031000,-964.79536311,0.00018678,2]
[425303868,1781679031000,-1151.55355255,0.00018678,2]
[425303876,1781679031000,-600.0,0.00018807,2]
[425303881,1781679031000,-151.0,0.00018979,2]
[425303873,1781679031000,-306.0714926,0.00018694,2]
[425303887,1781679031000,-151.0,0.0001898,2]
[425303884,1781679031000,-150.0,0.0001898,2]
[425303901,1781679031000,-150.99,0.00018981,2]
[425303903,1781679031000,-1865.98,0.00018981,2]
[425303902,1781679031000,-9999.99,0.00018981,2]
[425303897,1781679031000,-152.0,0.00018981,2]
[425303899,1781679031000,-151.0,0.00018981,2]
[425303898,1781679031000,-151.0,0.00018981,2]
[425303895,1781679031000,-151.0,0.00018981,2]
[425303900,1781679031000,-151.0,0.00018981,2]
[425303892,1781679031000,-151.0,0.00018981,2]
[425303896,1781679031000,-152.0,0.00018981,2]
[425303893,1781679031000,-151.0,0.00018981,2]
[425303890,1781679031000,-152.0,0.00018981,2]
[425303891,1781679031000,-152.0,0.00018981,2]
[425303888,1781679031000,-151.0,0.0001898,2]
[425303894,1781679031000,-151.0,0.00018981,2]
[425303889,1781679031000,-150.0,0.0001898,2]
[425303924,1781679032000,-200.0,0.00019096,2]
[425303920,1781679032000,-153.0,0.00019081,2]
[425303926,1781679032000,-500.0,0.00019101,2]
[425303938,1781679032000,-157.0,0.0002,2]
[425303941,1781679032000,-366.0,0.0002,2]
[425303933,1781679032000,-1852.05,0.00019376,2]
[425303931,1781679032000,-151.0,0.00019202,2]
[425303932,1781679032000,-166.66,0.00019272,2]
[425303937,1781679032000,-153.0,0.0002,2]
[425303940,1781679032000,-384.0,0.0002,2]
[425303934,1781679032000,-166.66,0.00019669,2]
[425303925,1781679032000,-500.0,0.00019101,2]
[425303908,1781679032000,-151.0,0.00019081,2]
[425303928,1781679032000,-151.0,0.00019202,2]
[425303929,1781679032000,-151.0,0.00019202,2]
[425303930,1781679032000,-150.0,0.00019202,2]
[425303927,1781679032000,-1175.18737362,0.00019102,2]
[425303917,1781679032000,-151.0,0.00019081,2]
[425303915,1781679032000,-151.0,0.00019081,2]
[425303912,1781679032000,-151.0,0.00019081,2]
[425303906,1781679032000,-500.0,0.00019081,2]
[425303904,1781679032000,-9999.99,0.00018981,2]
[425303910,1781679032000,-152.0,0.00019081,2]
[425303905,1781679032000,-1649.2711312,0.00019002,2]
[425303935,1781679032000,-720.14239234,0.00019869,2]
[425303922,1781679032000,-151.409047,0.00019081,2]
[425303936,1781679032000,-510.66604001,0.00019953,2]
[425303958,1781679032000,-500.0,0.00020132,2]
[425303942,1781679032000,-157.0,0.0002,2]
[425303968,1781679032000,-85.14294238,0.00021,2]
[425303966,1781679032000,-164.0,0.00021,2]
[425303967,1781679032000,-384.0,0.00021,2]
[425303963,1781679032000,-166.66,0.00020861,2]
[425303964,1781679032000,-1649.27113115,0.00020973,2]
[425303965,1781679032000,-157.0,0.00021,2]
[425303956,1781679032000,-250.0,0.00020132,2]
[425303954,1781679032000,-193.0,0.00020132,2]
[425303961,1781679032000,-600.0,0.00020546,2]
[425303962,1781679032000,-200.0,0.00020546,2]
[425303939,1781679032000,-156.0,0.0002,2]
[425303960,1781679032000,-166.66,0.00020464,2]
[425303959,1781679032000,-1175.18737358,0.00020316,2]
[425303957,1781679032000,-300.06717808,0.00020132,2]
[425303943,1781679032000,-187.709451,0.0002,2]
[425303953,1781679032000,-300.0,0.00020132,2]
[425303946,1781679032000,-512.0,0.0002,2]
[425303955,1781679032000,-200.21273614,0.00020132,2]
[425303944,1781679032000,-171.0,0.0002,2]
[425303950,1781679032000,-1606.36566369,0.00020102,2]
[425303945,1781679032000,-5992.92,0.0002,2]
[425303948,1781679032000,-159.0,0.0002,2]
[425303947,1781679032000,-622.0,0.0002,2]
[425303951,1781679032000,-1752.17213764,0.00020132,2]
[425303952,1781679032000,-150.050408,0.00020132,2]
[425303949,1781679032000,-166.66,0.00020067,2]
[425303970,1781679033000,-512.0,0.00021,2]
[425303969,1781679033000,-280.85705762,0.00021,2]
[425303976,1781679033000,-195.03052224,0.000217,2]
[425303972,1781679033000,-1175.18737358,0.0002153,2]
[425303975,1781679033000,-302.39440729,0.000217,2]
[425303971,1781679033000,-622.0,0.00021,2]
[425303973,1781679033000,-5334.5,0.00021628,2]
[425303974,1781679033000,-281.48460638,0.000217,2]
[425303978,1781679033000,-196.72473434,0.000218,2]
[425303979,1781679033000,-583.87901367,0.000219,2]
[425303980,1781679033000,-195.03052224,0.000219,2]
[425303977,1781679033000,-365.26297904,0.000217,2]
[425303992,1781679034000,-151.0,0.00022353,2]
[425303991,1781679034000,-500.0,0.0002211,2]
[425303990,1781679034000,-365.26297904,0.000221,2]
[425303989,1781679034000,-583.87901367,0.000221,2]
[425303985,1781679034000,-366.0,0.00022,2]
[425303983,1781679034000,-157.0,0.00022,2]
[425303986,1781679034000,-800.74,0.00022,3]
[425303988,1781679034000,-622.0,0.00022,2]
[425303994,1781679034000,-365.26297904,0.000224,2]
[425303984,1781679034000,-384.0,0.00022,2]
[425303982,1781679034000,-5000.0,0.00021918,2]
[425303981,1781679034000,-365.26297904,0.000219,2]
[425303987,1781679034000,-512.0,0.00022,2]
[425303997,1781679034000,-455.38819716,0.00022407,2]
[425304007,1781679034000,-366.0,0.00023,2]
[425303993,1781679034000,-583.87901367,0.000224,2]
[425304009,1781679034000,-622.0,0.00023,2]
[425304008,1781679034000,-512.0,0.00023,2]
[425304010,1781679034000,-1366.13017108,0.00023256,7]
[425303996,1781679034000,-455.38819716,0.00022407,2]
[425304002,1781679034000,-1175.18737358,0.00022745,2]
[425304005,1781679034000,-157.0,0.00023,2]
[425304003,1781679034000,-6825.2011,0.00022844,2]
[425304004,1781679034000,-1649.27113115,0.00022944,2]
[425304006,1781679034000,-384.0,0.00023,2]
[425304000,1781679034000,-583.87901367,0.000226,2]
[425303998,1781679034000,-188.46030709,0.00022407,2]
[425303999,1781679034000,-738.66,0.00022502,2]
[425303995,1781679034000,-455.38819717,0.00022407,2]
[425304001,1781679034000,-365.26297904,0.000226,2]
[425304012,1781679037000,-2832.19982879,0.00023256,7]
[425304013,1781679037000,-31576.8201458,0.00023575,2]
[425304016,1781679037000,-381.27822225,0.00023575,2]
[425304014,1781679037000,-2380.68425808,0.00023575,2]
[425304015,1781679037000,-1115.99,0.00023575,2]
[425304011,1781679037000,-326.00000013,0.00023256,7]
[425304018,1781679038000,-888.19466364,0.00023575,2]
[425304017,1781679038000,-408.90985648,0.00023575,2]
[425304030,1781679039000,-151.0,0.00023938,2]
[425304026,1781679039000,-1665.13660485,0.00023575,2]
[425304029,1781679039000,-578.20924308,0.00023938,2]
[425304027,1781679039000,-471.03679267,0.00023686,7]
[425304028,1781679039000,-151.0,0.00023938,2]
[425304031,1781679039000,-670.58624095,0.00023938,2]
[425304033,1781679039000,-151.0,0.00023938,2]
[425304034,1781679039000,-151.0,0.00023938,2]
[425304035,1781679039000,-151.0,0.00023938,2]
[425304037,1781679039000,-151.0,0.00023938,2]
[425304032,1781679039000,-151.0,0.00023938,2]
[425304036,1781679039000,-151.0,0.00023938,2]
[425304038,1781679039000,-151.0,0.00023938,2]
[425304039,1781679039000,-151.0,0.00023938,2]
[425304054,1781679040000,-187.709451,0.00024,2]
[425304055,1781679040000,-512.0,0.00024,2]
[425304059,1781679040000,-500.0,0.00024162,2]
[425304053,1781679040000,-366.0,0.00024,2]
[425304056,1781679040000,-622.0,0.00024,2]
[425304057,1781679040000,-408.0,0.00024131,2]
[425304052,1781679040000,-384.0,0.00024,2]
[425304058,1781679040000,-500.0,0.00024139,2]
[425304060,1781679040000,-200.0,0.00024163,2]
[425304051,1781679040000,-160.130233,0.00024,2]
[425304049,1781679040000,-1175.18737358,0.00023959,2]
[425304047,1781679040000,-482.29,0.00023955,2]
[425304050,1781679040000,-482.29,0.00023969,2]
[425304061,1781679040000,-914.75818087,0.00024186,7]
[425304046,1781679040000,-217.77,0.00023955,2]
[425304041,1781679040000,-151.0,0.00023938,2]
[425304043,1781679040000,-151.0,0.00023938,2]
[425304045,1781679040000,-482.29,0.00023955,2]
[425304044,1781679040000,-403.42,0.00023951,5]
[425304042,1781679040000,-151.0,0.00023938,2]
[425304040,1781679040000,-151.0,0.00023938,2]
[425304048,1781679040000,-482.29,0.00023955,2]
[425304068,1781679040000,-500.0,0.00024384,2]
[425304079,1781679040000,-487.94061545,0.00024384,2]
[425304064,1781679040000,-152.0,0.00024234,7]
[425304086,1781679040000,-161.98035939,0.00024486,2]
[425304083,1781679040000,-160.0,0.00024386,14]
[425304087,1781679040000,-54.0259275,0.000245,2]
[425304085,1781679040000,-200.0,0.00024405,2]
[425304084,1781679040000,-201.0,0.000244,2]
[425304082,1781679040000,-225.80510485,0.00024384,2]
[425304080,1781679040000,-150.0,0.00024384,2]
[425304081,1781679040000,-150.0,0.00024384,2]
[425304067,1781679040000,-500.0,0.00024384,2]
[425304078,1781679040000,-500.0,0.00024384,2]
[425304076,1781679040000,-181.24391002,0.00024384,2]
[425304077,1781679040000,-500.0,0.00024384,2]
[425304075,1781679040000,-150.0,0.00024384,2]
[425304073,1781679040000,-500.0,0.00024384,2]
[425304071,1781679040000,-500.0,0.00024384,2]
[425304072,1781679040000,-500.0,0.00024384,2]
[425304070,1781679040000,-500.0,0.00024384,2]
[425304066,1781679040000,-151.0,0.00024324,2]
[425304065,1781679040000,-152.0,0.00024272,7]
[425304069,1781679040000,-500.0,0.00024384,2]
[425304063,1781679040000,-2192.92908558,0.00024186,7]
[425304062,1781679040000,-328.31536752,0.00024186,7]
[425304074,1781679040000,-543.88098765,0.00024384,2]
[425304096,1781679042000,-1000.0,0.00024658,2]
[425304091,1781679042000,-255.9740725,0.000245,2]
[425304092,1781679042000,-1000.0,0.000245,2]
[425304095,1781679042000,-200.0,0.00024649,2]
[425304093,1781679042000,-316.0,0.000245,2]
[425304099,1781679042000,-3280.49076155,0.00024686,7]
[425304098,1781679042000,-867.98,0.00024658,2]
[425304097,1781679042000,-167.49,0.00024658,2]
[425304101,1781679042000,-2910.96980999,0.0002475,2]
[425304100,1781679042000,-4438.6155,0.00024686,7]
[425304094,1781679042000,-200.0,0.00024563,2]
[425304107,1781679045000,-1882.98775139,0.00023475,2]
[425304117,1781679094000,-500.0,0.0001898,2]
[425304119,1781679121000,568.75040855,0.00018202,2]
[425304120,1781679121000,527.79120469,0.00018038,2]
[425304123,1781679305000,-308.77974538,0.00014999,2]
[425304124,1781679358000,-503.98403737,0.00014999,2]
[425304129,1781679389000,250.0,0.00014,2]
[425304130,1781679414000,-408.90985648,0.00014899,2]
[425304131,1781679436000,-408.90985648,0.00014899,2]
[425304132,1781679458000,-888.19466364,0.00014899,2]
[425304133,1781679480000,-888.19466364,0.00014899,2]
[425304136,1781679502000,-714.87732157,0.00014899,2]
[425304137,1781679555000,-600.0,0.00014948,2]
[425304138,1781679571000,500.0,0.00028629,120]
[425304139,1781679588000,182.72,0.00028242,120]
[425304142,1781679609000,-500.0,0.00014997,2]
[425304144,1781679661000,-500.0,0.00014996,2]
[425304155,1781679909000,-500.0,0.00014994,2]
[425304148,1781679909000,-500.0,0.00014994,2]
[425304149,1781679909000,-500.0,0.00014994,2]
[425304150,1781679909000,-500.0,0.00014994,2]
[425304151,1781679909000,-500.0,0.00014994,2]
[425304152,1781679909000,-500.0,0.00014994,2]
[425304153,1781679909000,-500.0,0.00014994,2]
[425304154,1781679909000,-500.0,0.00014994,2]
[425304156,1781679909000,-500.0,0.00014994,2]
[425304160,1781679909000,-500.0,0.00014994,2]
[425304158,1781679909000,-500.0,0.00014994,2]
[425304166,1781679909000,-500.0,0.00014994,2]
[425304157,1781679909000,-500.0,0.00014994,2]
[425304165,1781679909000,-500.0,0.00014994,2]
[425304164,1781679909000,-500.0,0.00014994,2]
[425304167,1781679909000,-451.44442214,0.00014994,2]
[425304162,1781679909000,-548.55557786,0.00014994,2]
[425304161,1781679909000,-500.0,0.00014994,2]
[425304159,1781679909000,-500.0,0.00014994,2]
[425304163,1781679909000,-500.0,0.00014994,2]
[425304168,1781679910000,-48.55557786,0.00014994,2]
[425304177,1781679911000,-500.0,0.00014994,2]
[425304169,1781679911000,-500.0,0.00014994,2]
[425304171,1781679911000,-500.0,0.00014994,2]
[425304172,1781679911000,-500.0,0.00014994,2]
[425304173,1781679911000,-500.0,0.00014994,2]
[425304174,1781679911000,-500.0,0.00014994,2]
[425304176,1781679911000,-500.0,0.00014994,2]
[425304170,1781679911000,-500.0,0.00014994,2]
[425304179,1781679911000,-554.15902453,0.00014999,2]
[425304178,1781679911000,-600.0,0.00014997,2]
[425304185,1781679911000,-2084.53464315,0.00015,2]
[425304184,1781679911000,-500.0,0.00014999,2]
[425304175,1781679911000,-500.0,0.00014994,2]
[425304180,1781679911000,-225.51651824,0.00014999,2]
[425304182,1781679911000,-487.23423622,0.00014999,2]
[425304181,1781679911000,-500.0,0.00014999,2]
[425304183,1781679911000,-500.0,0.00014999,2]
[425304186,1781679912000,-10000.0,0.00015,2]
[425304187,1781679913000,-10000.0,0.00015,2]
[425304188,1781679916000,-10000.0,0.00015,2]
[425304189,1781679917000,-10000.0,0.00015,2]
[425304190,1781679918000,-10000.0,0.00015,2]
[425304191,1781679923000,-8000.0,0.00015,2]
[425304192,1781679955000,-3657.56613212,0.00015,2]
[425304193,1781679977000,-3657.56613212,0.00015,2]
[425304194,1781680019000,-3657.56613212,0.00015,2]
[425304195,1781680061000,-587.59368679,0.000149,2]
[425304196,1781680061000,-3069.97244533,0.00014998,2]
[425304197,1781680063000,-1084.24264572,0.00014998,2]
[425304198,1781680104000,-742.57959282,0.00014998,2]
[425304199,1781680105000,-1084.24264572,0.00014998,2]
[425304200,1781680146000,-1084.24264572,0.00014998,2]
[425304202,1781680187000,-911.51290785,0.00014998,2]
[425304201,1781680187000,-172.72973787,0.00014925,2]
[425304204,1781680209000,-600.0,0.00014998,2]
[425304206,1781680231000,-600.0,0.00014998,2]
[425304227,1781680233000,-45173.83099979,0.00015,2]
[425304224,1781680233000,-500.0,0.00014999,2]
[425304223,1781680233000,-2184.24919174,0.00014998,2]
[425304229,1781680233000,-58.93603465,0.00015,2]
[425304225,1781680233000,-18090.89870417,0.00015,2]
[425304228,1781680233000,-541.06396535,0.00014999,2]
[425304226,1781680233000,-18377.95028409,0.00015,2]
[425304375,1781680275000,-500.0,0.00014997,2]
[425304376,1781680275000,-500.0,0.00014997,2]
[425304377,1781680275000,-500.0,0.00014997,2]
[425304378,1781680275000,-500.0,0.00014997,2]
[425304380,1781680275000,-500.0,0.00014997,2]
[425304381,1781680275000,-500.0,0.00014997,2]
[425304382,1781680275000,-500.0,0.00014997,2]
[425304379,1781680275000,-500.0,0.00014997,2]
[425304383,1781680275000,-500.0,0.00014997,2]
[425304385,1781680275000,-500.0,0.00014997,2]
[425304386,1781680275000,-500.0,0.00014997,2]
[425304387,1781680275000,-500.0,0.00014997,2]
[425304388,1781680275000,-88.006782,0.00014997,2]
[425304389,1781680275000,-411.993218,0.00014997,2]
[425304390,1781680275000,-188.006782,0.00014997,2]
[425304384,1781680275000,-500.0,0.00014997,2]
[425304391,1781680276000,-311.993218,0.00014997,2]
[425304392,1781680276000,-500.0,0.00014997,2]
[425304393,1781680276000,-500.0,0.00014997,2]